Cogmind - Beta 11.1 @@@ ROGUE MODE // 2022.10.14 @ 13:36:22 Player: arcadio Result: Destroyed by Y-54 Guardian with Gatling Laser Performance ------------- Evolutions (3) 1500 Regions Visited (6) 1200 Robots Destroyed (102) 510 Value Destroyed (2756) 2756 Prototype IDs (11) 220 Alien Tech Used (0) 0 Bonus (1059) 1059 TOTAL SCORE: 7245 Bonus ------- High Alert Combat Kills 774 Follower Combat Kills 338 Friendly Fire -53 Cogmind --------- Core Integrity 0/700 Matter 284/300 Energy 96/100 System Corruption 11% Temperature Cool (18) Movement Rolling (100) Location -7/Factory Parts ------- > --- POWER (1) -------- (None) > --- PROPULSION (4) --- Armored Huge Wheel > --- UTILITY (5) ------ Large Storage Unit Core Analyzer > --- WEAPON (3) ------- (None) > --- INVENTORY (15) --- Light Ion Engine Light Nuclear Core Improved Titanium Leg High-capacity Matter Pod (200) Gravity Neutralizer Kinecellerator Reaction Control System Hardlight Generator Long-range Tractor Beam Improved Medium Laser Advanced Beam Cannon Autogun Improved Grenade Launcher Peak State ------------ > --- POWER ------------ Light Nuclear Core > --- PROPULSION ------- VSS Leg VSS Leg VSS Leg VSS Leg > --- UTILITY ---------- Improved Heat Sink Improved Heat Sink Improved Heat Sink Large Storage Unit Hardlight Generator > --- WEAPON ----------- Beamcaster Improved Assault Rifle Gauss Cannon > --- INVENTORY -------- Light Nuclear Core F-cell Engine High-capacity Matter Pod Gravity Neutralizer Core Shielding Drone Bay Improved Medium Laser Advanced Beam Cannon Improved Assault Rifle Improved Light Cannon Rocket Launcher Rocket Launcher Rocket Launcher [Rating: 43] Favorites ----------- Power Light Nuclear Core Engine Ion Engine Power Core Light Nuclear Core Propulsion Light Treads Treads Light Treads Leg VSS Leg Wheel Compact Wheel Hover Unit Improved Hover Unit Utility Large Storage Unit Device Improved Heat Sink Storage Large Storage Unit Processor Improved Signal Interpreter Hackware Hacking Suite Protection Propulsion Shielding Weapon Improved Assault Rifle Energy Gun Medium Laser Ballistic Gun Improved Assault Rifle Ballistic Cannon Improved Light Cannon Launcher Rocket Launcher Build | -11 -10 -10 -9 -9 -9 -7 ------- Run | Scr Mat Min Mat Sto Rec Fac Slots Evolved 6 | . . . 2 . . 4 Power . | . . . . . . . Propulsion 2 | . . . 1 . . 1 Utility 3 | . . . 1 . . 2 Weapon 1 | . . . . . . 1 Parts Attached 97 | 6 13 4 3 30 . 41 Power 17 | 1 1 2 . 7 . 6 Engine 12 | 1 1 2 . 6 . 2 Core 5 | . . . . 1 . 4 Reactor . | . . . . . . . Propulsion 31 | 2 2 . 1 16 . 10 Treads 14 | . . . . 11 . 3 Leg 6 | . . . . . . 6 Wheel 8 | 2 2 . 1 2 . 1 Hover 3 | . . . . 3 . . Flight . | . . . . . . . Utility 16 | 1 2 1 1 2 . 9 Device 7 | . . . . 2 . 5 Storage 2 | 1 1 . . . . . Processor 3 | . . 1 . . . 2 Hackware 2 | . . . 1 . . 1 Protection 2 | . 1 . . . . 1 Artifact . | . . . . . . . Weapon 33 | 2 8 1 1 5 . 16 Energy Gun 9 | 1 5 . 1 1 . 1 Energy Cannon . | . . . . . . . Ballistic Gun 9 | 1 . . . 3 . 5 Ballistic Cannon 6 | . . 1 . 1 . 4 Launcher 9 | . 3 . . . . 6 Special Weapon . | . . . . . . . Impact Weapon . | . . . . . . . Slashing Weapon . | . . . . . . . Piercing Weapon . | . . . . . . . Special Melee Weapon . | . . . . . . . Unidentified Prototypes 2 | . . . . . . 2 Parts Lost 29 | . 1 . . 7 . 21 Power 7 | . 1 . . 2 . 4 Propulsion 9 | . . . . 4 . 5 Utility 7 | . . . . 1 . 6 Weapon 6 | . . . . . . 6 Highest Loss Streak 10 | . 1 . . 2 . 10 To Critical Strikes 1 | . . . . . . 1 Average Slot Usage (%) 94 | . 98 100 100 97 100 77 Engine 7 | . 13 14 11 10 . 2 Core 2 | . . . . . 11 3 Treads 13 | . . . . 15 33 8 Leg 2 | . . . . . . 13 Wheel 12 | . 28 28 33 14 . 1 Device 4 | . . . . . 11 11 Storage 10 | . 14 14 11 11 11 7 Processor 7 | . . 6 11 11 11 2 Hackware 4 | . . . 11 10 . 2 Protection 2 | . 13 7 . . . 2 Energy Gun 9 | . 22 20 11 3 11 3 Ballistic Gun 7 | . 5 . . 9 11 5 Ballistic Cannon 5 | . . 7 11 8 . 6 Naked Turns . | . . . . . . . Heaviest Build 51 | 11 30 31 30 34 34 51 Greatest Support 80 | 26 32 32 42 60 60 80 Greatest Overweight (x) 14 | . 1 . . 10 . 14 Average Overweight (x) . | . . . . . . . Largest Inventory Capacity 15 | 8 15 15 15 15 15 15 Average Capacity 14 | 6 12 15 15 15 15 15 Most Carried 15 | 6 15 15 14 15 15 15 Average Carried 13 | 2 9 14 13 14 15 13 Final Capacity 15 | 8 15 15 15 15 15 15 Final Carried 15 | 6 15 15 13 15 15 13 Class Distribution -------------------- 51% | Mutant 34% | Scavenger-Mutant 6% | Tank 3% | Scavenger-Tank Dominant Class ---------------- Mutant | -10/Materials Mutant | -10/Mines Mutant | -9/Materials Mutant | -9/Storage Scavenger-Mutant | -9/Recycling Tank | -7/Factory Resources | -11 -10 -10 -9 -9 -9 -7 ----------- Run | Scr Mat Min Mat Sto Rec Fac Matter Collected 2938 | 224 231 180 . 1246 113 944 Remotely . | . . . . . . . Salvage Created 2945 | . 413 69 . 1428 153 882 Parts 180 | . 24 13 . 86 14 43 Haulers Intercepted 7 | . 2 . . 5 . . Recyclers Shooed 4 | . . . . 1 2 1 Parts Field Recycled . | . . . . . . . Retrieved Matter . | . . . . . . . Parts Self-Destructed . | . . . . . . . Prevented . | . . . . . . . Kills | -11 -10 -10 -9 -9 -9 -7 ------- Run | Scr Mat Min Mat Sto Rec Fac Combat Hostiles Destroyed 75 | . 10 5 . 27 6 27 Guns 42 | . 6 4 . 14 6 12 Cannons 21 | . . 1 . 13 . 7 AOE 12 | . 4 . . . . 8 Classes Destroyed 12 | . 5 . . 4 1 2 Worker 2 | . . . . . . 2 Builder 8 | . . . . 2 1 5 Hauler 7 | . 2 . . 5 . . Recycler 5 | . 1 . . 2 1 1 Drone 6 | . . . . . 6 . Watcher 5 | . 3 . . 2 . . Swarmer 18 | . 6 5 . . . 7 Grunt 29 | . 4 . . 12 . 13 Brawler 3 | . . . . 1 . 2 Duelist 2 | . . . . 2 . . Sentry 14 | . . . . 12 . 2 Programmer 3 | . . . . . . 3 Best Kill Streak 9 | . 4 3 . 3 2 9 Combat Bots Only 8 | . 3 3 . 3 2 8 Max Kills in Single Turn 3 | . 2 1 . 2 1 3 Gunslinging . | . . . . . . . Exploded 3 | . 2 . . . . 3 Melee . | . . . . . . . Uniques/NPCs Destroyed . | . . . . . . . Combat | -11 -10 -10 -9 -9 -9 -7 -------- Run | Scr Mat Min Mat Sto Rec Fac Damage Taken 5495 | . 400 243 . 1446 51 3355 Core 1123 | . 139 58 . 216 . 710 Absorbed by Shields . | . . . . . . . Redirected to Shielding 62 | . 10 4 . . . 48 Regen/Repaired (Parts) 75 | . . . . . . 75 Core Remaining (%) 55 | 100 . 21 . . 46 . Volleys Fired 283 | . 47 15 . 119 20 82 Largest 3 | . 2 2 . 2 2 3 Hottest 146 | . 100 100 . 84 98 146 Shots Fired 566 | . 83 30 . 238 42 173 Gun 380 | . 75 24 . 137 42 102 Cannon 153 | . . 6 . 101 . 46 Launcher 33 | . 8 . . . . 25 Special . | . . . . . . . Kinetic 355 | . 27 6 . 209 22 91 Thermal 148 | . 47 24 . . 20 57 Explosive 33 | . 8 . . . . 25 Electromagnetic 30 | . 1 . . 29 . . Robot Hit Streak 22 | . 13 3 . 22 3 9 Robot Miss Streak 7 | . 2 4 . 4 7 6 Penetration Max . | . . . . . . . Secondary Targets 2 | . . . . . . 2 Max Gunslinging Chain 1 | . . . . . . 1 Shots Hit Robots 335 | . 53 11 . 169 11 91 Core Hits 177 | . 28 6 . 59 9 75 Critical Kills . | . . . . . . . Critical Parts Destroyed . | . . . . . . . Critical Strikes 12 | . 1 . . 3 . 8 Burn 4 | . 1 . . . . 3 Blast 8 | . . . . 3 . 5 Melee Attacks . | . . . . . . . Impact . | . . . . . . . Slashing . | . . . . . . . Piercing . | . . . . . . . Sneak Attacks . | . . . . . . . Combat Hostiles . | . . . . . . . Follow-up Attacks . | . . . . . . . Damage Inflicted 8075 | . 898 164 . 3061 296 3656 Guns 3600 | . 564 138 . 1494 296 1108 Cannons 2216 | . . 22 . 1567 . 627 Explosions 2157 | . 334 . . . . 1823 Melee . | . . . . . . . Ramming 102 | . . 4 . . . 98 Kinetic 4234 | . 152 22 . 2859 170 1031 Thermal 1378 | . 410 138 . . 126 704 Explosive 2135 | . 312 . . . . 1823 Electromagnetic 226 | . 24 . . 202 . . Impact . | . . . . . . . Slashing . | . . . . . . . Piercing . | . . . . . . . Highest Corruption 11 | . . . . 4 4 11 Average Corruption 3 | . . . . 1 4 7 Corruption Purged . | . . . . . . . Corruption Blocked . | . . . . . . . Effects 93 | . . . . 26 29 38 Message Errors 26 | . . . . 8 5 13 Matter Fused 21 | . . . . 9 7 5 Heat Flow Errors 10 | . . . . 3 4 3 Energy Discharges 13 | . . . . 3 8 2 Parts Rejected 1 | . . . . . . 1 Data Loss (minor) 9 | . . . . 2 1 6 Data Loss (major) 5 | . . . . 1 2 2 Misfires 4 | . . . . . 2 2 Alerts 1 | . . . . . . 1 Misdirections 1 | . . . . . . 1 Weapon Failures 2 | . . . . . . 2 Overload Shots . | . . . . . . . Overflow Damage 13 | . . . . . . 13 Projectiles . | . . . . . . . Explosions 13 | . . . . . . 13 Melee . | . . . . . . . Knockbacks 9 | . . . . 7 . 2 Impact . | . . . . . . . Kinetic 8 | . . . . 6 . 2 Secondary 1 | . . . . 1 . . Self-Inflicted Damage 92 | . 44 2 . . . 46 Shots 3 | . 2 . . . . 1 Rammed 3 | . . 1 . . . 2 Targets Rammed 23 | . . 1 . . . 22 Kicked 20 | . . . . . . 20 Crushed . | . . . . . . . Highest Temperature 312 | . 195 312 . 295 262 266 Average Temperature 74 | . 65 129 . 53 118 82 Received Heat Transfer 1494 | . 159 . . 501 18 816 Effects 2 | . . . . . . 2 Interference 2 | . . . . . . 2 Siege Activations . | . . . . . . . Robots Corrupted . | . . . . . . . Combat Hostiles . | . . . . . . . Parts Fried 1 | . . . . 1 . . Impact Corruptions . | . . . . . . . Robots Melted . | . . . . . . . Combat Hostiles . | . . . . . . . Parts Melted 3 | . 1 . . . . 2 Heat Transferred 3231 | . 1141 407 . . 222 1461 Parts Sabotaged . | . . . . . . . Parts Stolen . | . . . . . . . Parts Stripped . | . . . . . . . Power Chain Reactions 1 | . 1 . . . . . Missiles Intercepted . | . . . . . . . Alert | -11 -10 -10 -9 -9 -9 -7 ------- Run | Scr Mat Min Mat Sto Rec Fac Peak Influence 1309 | . 232 116 11 602 328 1309 Initial 994 | . . 36 11 4 234 994 Average 351 | . 113 58 11 268 216 1011 Maximum Alert Level 4 | . 1 . . 2 1 4 Low Security (%) 44 | 100 89 100 100 30 48 . Level 1 26 | . 10 . . 41 51 . Level 2 10 | . . . . 27 . . Level 3 14 | . . . . . . 78 Level 4 4 | . . . . . . 21 Level 5 . | . . . . . . . High Security . | . . . . . . . Max Security . | . . . . . . . Squads Dispatched 16 | . . 1 . 5 . 10 Investigation 3 | . . 1 . 1 . 1 Extermination 3 | . . . . . . 3 Reinforcement 6 | . . . . 2 . 4 Assault 4 | . . . . 2 . 2 Garrison . | . . . . . . . Intercept . | . . . . . . . Searches Triggered 2 | . . . . . . 2 Construction Impeded 1 | . . . . . . 1 Haulers Reinforced 1 | . . . . . . 1 Active Scanning Responses . | . . . . . . . Cargo Convoy Interrupts . | . . . . . . . Stealth | -11 -10 -10 -9 -9 -9 -7 --------- Run | Scr Mat Min Mat Sto Rec Fac Distress Signals 6 | . . . . 5 . 1 Communications Jammed . | . . . . . . . Distress Signals . | . . . . . . . Times Spotted 152 | . 14 10 2 50 26 50 Peak Tracking Total 9 | . 3 3 4 8 4 9 Tactical Retreats 14 | . . 6 . 4 . 4 Traps | -11 -10 -10 -9 -9 -9 -7 ------- Run | Scr Mat Min Mat Sto Rec Fac Traps Triggered 6 | . . . . 3 . 3 Indirectly . | . . . . . . . Trap Hack Attempts . | . . . . . . . Triggered . | . . . . . . . Disarmed . | . . . . . . . Reprogrammed . | . . . . . . . Reused . | . . . . . . . Traps Extracted . | . . . . . . . Installed . | . . . . . . . Triggered . | . . . . . . . Machines | -11 -10 -10 -9 -9 -9 -7 ---------- Run | Scr Mat Min Mat Sto Rec Fac Machines Disabled 5 | . 1 . . 3 . 1 Max in Single Turn 1 | . 1 . . 1 . 1 Machines Sabotaged . | . . . . . . . Garrisons Compromised . | . . . . . . . Overloaded Fab Kills . | . . . . . . . Hacking | -11 -10 -10 -9 -9 -9 -7 --------- Run | Scr Mat Min Mat Sto Rec Fac Machines Accessed 34 | . 7 1 . 13 7 6 Terminals 25 | . 7 . . 11 6 1 Fabricators 2 | . . . . . . 2 Repair Stations 1 | . . . . . . 1 Recycling Units 3 | . . . . 1 1 1 Scanalyzers 1 | . . . . . . 1 Garrison Access 1 | . . . . 1 . . Total Hacks 103 | . 18 1 . 41 30 13 Successful 58 | . 12 1 . 24 13 8 Failed 43 | . 5 . . 17 16 5 Catastrophic 5 | . . . . 3 1 1 Database Lockouts 2 | . 1 . . . 1 . Manual 60 | . 19 . . 23 18 . Terminals 87 | . 18 . . 38 29 2 Fabricators 5 | . . . . . . 5 Repair Stations 2 | . . . . . . 2 Recycling Units 4 | . . . . 1 1 2 Scanalyzers 2 | . . . . . . 2 Garrison Access 2 | . . . . 2 . . Terminal Hacks 33 | . 6 1 . 18 8 . Record 2 | . . . . . 2 . Part Schematic 3 | . 1 . . 1 1 . Robot Schematic 1 | . . . . . 1 . Robot Analysis 1 | . . . . 1 . . Prototype ID Bank 5 | . 1 . . 3 1 . Open Door 6 | . . 1 . 5 . . Branch Access Points 1 | . . . . 1 . . Terminal Index 2 | . 1 . . 1 . . Alert Level 2 | . . . . . 2 . Locate Traps 3 | . 2 . . 1 . . Dispatch Records 1 | . 1 . . . . . Security Status 3 | . . . . 3 . . Patrol Status 2 | . . . . 2 . . Zone Layout 1 | . . . . . 1 . Fabricator Hacks 3 | . . . . . . 3 Load Schematic 2 | . . . . . . 2 Build 1 | . . . . . . 1 Repair Station Hacks 2 | . . . . . . 2 Scan Component 1 | . . . . . . 1 Repair 1 | . . . . . . 1 Recycling Unit Hacks 4 | . . . . 1 1 2 Report Inventory 3 | . . . . 1 1 1 Retrieve Components 1 | . . . . . . 1 Scanalyzer 1 | . . . . . . 1 Insert Component 1 | . . . . . . 1 Garrison Access Hacks . | . . . . . . . Unauthorized Hacks 15 | . 6 . . 5 4 . Terminals 15 | . 6 . . 5 4 . Track 3 | . 1 . . . 2 . Assimilate 2 | . 1 . . 1 . . Botnet 8 | . 3 . . 3 2 . Operators 2 | . 1 . . 1 . . Fabricators . | . . . . . . . Repair Stations . | . . . . . . . Recycling Units . | . . . . . . . Scanalyzers . | . . . . . . . Garrison Access . | . . . . . . . Data Cores Recovered . | . . . . . . . Used . | . . . . . . . Hacking Detections 28 | . 7 . . 9 6 6 Full Trace Events 4 | . . . . 1 2 1 Feedback Events . | . . . . . . . Feedback Blocked . | . . . . . . . Robot Schematics Acquired 1 | . . . . . 1 . Robots Built 3 | . . . . . . 3 Authchips . | . . . . . . . Time 49 | . . . . . . 49 Total Robot Build Rating 6 | . . . . . . 6 Part Schematics Acquired 3 | . 1 . . 1 1 . Parts Built . | . . . . . . . Authchips . | . . . . . . . Time . | . . . . . . . Total Part Build Rating . | . . . . . . . Parts Repaired 1 | . . . . . . 1 Time 38 | . . . . . . 38 Parts Recycled . | . . . . . . . Recycled Matter . | . . . . . . . Retrieved Matter . | . . . . . . . Retrieved Components 10 | . . . . . . 10 Parts Scanalyzed 1 | . . . . . . 1 Part Schematics Acquired . | . . . . . . . Parts Damaged . | . . . . . . . Bothacking | -11 -10 -10 -9 -9 -9 -7 ------------ Run | Scr Mat Min Mat Sto Rec Fac Used RIF Installer . | . . . . . . . Robots Hacked . | . . . . . . . Non-combat . | . . . . . . . Combat . | . . . . . . . Robot Hacks Applied . | . . . . . . . Relay Couplers Released . | . . . . . . . Fabnet Peak Effective % . | . . . . . . . Robots Rewired 8 | . . . . . 7 1 Allies Hacked . | . . . . . . . Hacks Repelled . | . . . . . . . Allies | -11 -10 -10 -9 -9 -9 -7 -------- Run | Scr Mat Min Mat Sto Rec Fac Total Allies 14 | . 1 . . 2 7 4 Largest Group 8 | . 1 1 1 2 8 7 Highest-Rated Group 126 | . 10 10 10 62 115 126 Highest-Rated Ally 32 | . 10 10 10 31 31 32 Total Orders 2 | . . . . . . 2 EXPLORE 2 | . . . . . . 2 Ally Attacks 393 | . . . . 27 339 27 Total Damage 2793 | . . . . 471 1775 547 Kills 49 | . . . . 6 38 5 Allies Corrupted 1 | . . . . 1 . . Allies Melted . | . . . . . . . Intel | -11 -10 -10 -9 -9 -9 -7 ------- Run | Scr Mat Min Mat Sto Rec Fac Robot Analysis Total 1 | . . . . 1 . . Derelict Logs Recovered 1 | . . 1 . . . . Drone Launches 3 | . . . . . . 3 Drone Recoveries 1 | . . . . . . 1 Exploration | -11 -10 -10 -9 -9 -9 -7 ------------- Run | Scr Mat Min Mat Sto Rec Fac Turns Passed 7937 | 67 849 1053 37 2988 1447 1496 Spaces Moved 4627 | 58 698 903 36 1448 725 759 Core 14 | 2 . . . 2 . 10 Treads 1698 | . . . . 786 725 187 Legs 387 | . . . . . . 387 Wheels 2507 | 56 698 903 36 639 . 175 Hover 21 | . . . . 21 . . Flight . | . . . . . . . Fastest Speed 50 | 50 90 100 93 93 160 90 Average Speed 124 | 88 97 100 93 134 160 126 Slowest Speed 750 | 100 105 100 93 550 160 750 Overloaded Moves . | . . . . . . . Propulsion Burnouts . | . . . . . . . Robots Hopped . | . . . . . . . Cave-ins Triggered . | . . . . . . . Exploration Rate (%) 59 | 3 89 99 6 95 98 24 Regions Visited 6 Branch Regions 3 Pre-discovered Areas . | . . . . . . . Known Exits Taken 4 | . . 1 1 1 1 . Unknown Exits Taken 2 | 1 1 . . . . . Scrap Searched 1 | . . 1 . . . . Spaces Dug 15 | . 15 . . . . . Terrain Destroyed 191 | . 54 2 . 7 . 128 Melee . | . . . . . . . Projectile 25 | . . 2 . 7 . 16 AOE 166 | . 54 . . . . 112 Terrain Rammed . | . . . . . . . Walls Destroyed . | . . . . . . . Machines Disabled . | . . . . . . . Actions | -11 -10 -10 -9 -9 -9 -7 --------- Run | Scr Mat Min Mat Sto Rec Fac Total 6277 | 70 785 1027 38 2250 972 1135 Wait 985 | . 8 91 . 604 114 168 Move 4621 | 57 697 902 35 1447 724 759 Hop . | . . . . . . . Pick Up 59 | 7 13 6 . 18 . 15 Fast Attach 36 | 5 3 . . 17 . 11 Attach 28 | 1 1 . 2 3 . 21 Detach 13 | . . . . 1 . 12 Swap 33 | . 9 4 1 10 . 9 Drop 57 | . 7 8 . 31 . 11 Fire 283 | . 47 15 . 119 20 82 Melee . | . . . . . . . Ram 3 | . . 1 . . . 2 Kick 20 | . . . . . . 20 Crush . | . . . . . . . Escape Stasis 5 | . . . . . . 5 Rewire 134 | . . . . . 114 20 Trap . | . . . . . . . Miscellaneous . | . . . . . . . Route ------- -11/Scrapyard -10/Materials (discovered 4 exits: *Mat x2 / *Min x2) -10/Mines (discovered 2 exits: *Mat x2) -9/Materials -9/Storage (discovered 2 exits: [*Mat] / *Rec) -9/Recycling -7/Factory History --------- Turn | Location | Event 10 | -11/Scrapyard | Discovered new exit (range 16) 68 | -11/Scrapyard | Entered Materials 91 | -10/Materials | Discovered new exit (range 16) 206 | -10/Materials | Discovered new exit (range 14) 313 | -10/Materials | Build established: Mutant 613 | -10/Materials | Central database locked down 624 | -10/Materials | Discovered new exit (range 9) 746 | -10/Materials | Discovered new exit (range 3) 890 | -10/Materials | Core integrity fell below 50% 917 | -10/Materials | Entered Mines 917 | -10/Mines | Accompanied by 1 ally 1186 | -10/Mines | Learned 2 Materials zone layouts 1242 | -10/Mines | Discovered new exit (range 12) 1371 | -10/Mines | Met a Derelict shopkeep closing up shop 1482 | -10/Mines | Received a Rocket Launcher from a helpful Derelict 1493 | -10/Mines | Discovered new exit (range 14) 1507 | -10/Mines | Identified exit to Materials 1970 | -10/Mines | Entered Materials 1970 | -9/Materials | Accompanied by 1 ally 1970 | -9/Materials | Evolved 2 slots: Propulsion x1, Utility x1 1984 | -9/Materials | Discovered new exit (range 11) 1993 | -9/Materials | Identified exit to Storage 2007 | -9/Materials | Entered Storage 2007 | -9/Storage | Accompanied by 1 ally 2794 | -9/Storage | Identified exit to Recycling 3603 | -9/Storage | Discovered new exit (range 16) 3839 | -9/Storage | Build established: Scavenger-Mutant 4796 | -9/Storage | Met a pair of Derelict thieves 4870 | -9/Storage | Core integrity fell below 50% 4988 | -9/Storage | Used back door to open Recycling access 4995 | -9/Storage | Entered Recycling 4995 | -9/Recycling | Accompanied by 1 ally 5030 | -9/Recycling | Spotter reported a threat 5030 | -9/Recycling | Spotter reported a threat 5039 | -9/Recycling | Spotter reported a threat 5053 | -9/Recycling | Spotter reported a threat 5057 | -9/Recycling | Spotter reported a threat 5057 | -9/Recycling | Spotter reported a threat 5063 | -9/Recycling | Spotter reported a threat 5065 | -9/Recycling | Spotter reported a threat 5092 | -9/Recycling | Spotter reported a threat 5112 | -9/Recycling | Spotter reported a threat 5145 | -9/Recycling | Spotter reported a threat 5165 | -9/Recycling | Spotter reported a threat 5218 | -9/Recycling | Spotter reported a threat 5227 | -9/Recycling | Spotter reported a threat 5280 | -9/Recycling | Spotter reported a threat 5332 | -9/Recycling | Discovered new exit (range 6) 5338 | -9/Recycling | Identified exit to Factory 5387 | -9/Recycling | Spotter reported a threat 5427 | -9/Recycling | Spotter reported a threat 5428 | -9/Recycling | Spotter reported a threat 5458 | -9/Recycling | Spotter reported a threat 5480 | -9/Recycling | Spotter reported a threat 5500 | -9/Recycling | Spotter reported a threat 5511 | -9/Recycling | Spotter reported a threat 5541 | -9/Recycling | Spotter reported a threat 5553 | -9/Recycling | Spotter reported a threat 5590 | -9/Recycling | Spotter reported a threat 5595 | -9/Recycling | Spotter reported a threat 5631 | -9/Recycling | Spotter reported a threat 5637 | -9/Recycling | Spotter reported a threat 5645 | -9/Recycling | Spotter reported a threat 5683 | -9/Recycling | Spotter reported a threat 5688 | -9/Recycling | Spotter reported a threat 5694 | -9/Recycling | Spotter reported a threat 5698 | -9/Recycling | Spotter reported a threat 5764 | -9/Recycling | Spotter reported a threat 5764 | -9/Recycling | Spotter reported a threat 5817 | -9/Recycling | Spotter reported a threat 5839 | -9/Recycling | Spotter reported a threat 5900 | -9/Recycling | Spotter reported a threat 5907 | -9/Recycling | Spotter reported a threat 5921 | -9/Recycling | Spotter reported a threat 5952 | -9/Recycling | Spotter reported a threat 5954 | -9/Recycling | Spotter reported a threat 5960 | -9/Recycling | Spotter reported a threat 5980 | -9/Recycling | Spotter reported a threat 6007 | -9/Recycling | Spotter reported a threat 6039 | -9/Recycling | Spotter reported a threat 6039 | -9/Recycling | Spotter reported a threat 6040 | -9/Recycling | Spotter reported a threat 6090 | -9/Recycling | Spotter reported a threat 6143 | -9/Recycling | Spotter reported a threat 6171 | -9/Recycling | Spotter reported a threat 6171 | -9/Recycling | Spotter reported a threat 6213 | -9/Recycling | Spotter reported a threat 6224 | -9/Recycling | Spotter reported a threat 6259 | -9/Recycling | Spotter reported a threat 6266 | -9/Recycling | Spotter reported a threat 6287 | -9/Recycling | Spotter reported a threat 6287 | -9/Recycling | Spotter reported a threat 6319 | -9/Recycling | Spotter reported a threat 6325 | -9/Recycling | Spotter reported a threat 6358 | -9/Recycling | Spotter reported a threat 6376 | -9/Recycling | Spotter reported a threat 6376 | -9/Recycling | Spotter reported a threat 6376 | -9/Recycling | Spotter reported a threat 6416 | -9/Recycling | Spotter reported a threat 6427 | -9/Recycling | Spotter reported a threat 6427 | -9/Recycling | Spotter reported a threat 6442 | -9/Recycling | Entered Factory 6442 | -7/Factory | Accompanied by 4 allies 6442 | -7/Factory | Evolved 4 slots: Propulsion x1, Utility x2, Weapon x1 6543 | -7/Factory | Fabricated L-31 Rogue? 6811 | -7/Factory | Lost 3 parts (1p2u) 6842 | -7/Factory | Search patrols dispatched 7110 | -7/Factory | Destroyed 8 combat bots 7117 | -7/Factory | Lost 4 parts (1p1u2w) 7242 | -7/Factory | Search patrols dispatched 7451 | -7/Factory | Build established: Tank 7520 | -7/Factory | Repaired VSS Leg 7642 | -7/Factory | First assault squad dispatched 7647 | -7/Factory | Core integrity fell below 50% 7691 | -7/Factory | Lost 10 parts (1p4n2u3w) 7890 | -7/Factory | System corruption reached 10% 7914 | -7/Factory | Core integrity fell below 20% 7926 | -7/Factory | Build established: Mutant 7938 | -7/Factory | Destroyed by Y-54 Guardian with Gatling Laser Last Messages --------------- 07838_ Guardian 4a suffers critical hit (Burn). 07839_ G-47 Trooper destroyed. 07840_ Guardian 4a heat damages core (-13). 07841_ System corrupted: Heat flow error (+209). 07844_ System corrupted: Autogun jammed. 07845_ Overheating: System interference. 07845_ Autogun temporarily disabled. 07849_ C-30 ARC bursts open, deploying its payload. 07849_ G-50 Soldier unfolds itself. 07849_ B-48 Gladiator unfolds itself. 07849_ I-36 Angel unfolds itself. 07888_ Slammed into K-01 Serf. 07889_ LEFX48L